fUSD/lending_fUSD_20250202
["ID","MTS","AMOUNT","RATE_DAILY","PERIOD"]
[351283973,1738505558537,-2521.42,0.00012876,2]
[351283974,1738505558549,-2782.57,0.00012876,2]
[351283975,1738505558559,-376.64830706,0.00012876,2]
[351283976,1738505558570,-1766.1,0.00012876,2]
[351283977,1738505558580,-1697.0,0.00012876,2]
[351283978,1738505558590,-1939.71,0.00012876,2]
[351283979,1738505558600,-787.48,0.00012876,2]
[351283980,1738505558611,-1300.79,0.00012876,2]
[351283981,1738505558622,-3484.78,0.00012876,2]
[351283982,1738505558636,-512.49,0.00012876,2]
[351283983,1738505558647,-500.0,0.00012876,2]
[351283984,1738505558656,-1213.23,0.00012876,2]
[351283985,1738505558666,-5629.82,0.00012876,2]
[351283986,1738505558675,-2449.26,0.00012876,2]
[351283987,1738505558685,-758.01,0.00012876,2]
[351283988,1738505558696,-848.99,0.00012876,2]
[351283989,1738505558706,-888.7,0.00012876,2]
[351283990,1738505558716,-4605.95,0.00012876,2]
[351283991,1738505558726,-2359.63,0.00012876,2]
[351283992,1738505558736,-892.49,0.00012876,2]
[351283993,1738505558746,-871.23,0.00012876,2]
[351283994,1738505558757,-1094.04,0.00012876,2]
[351283995,1738505558767,-6442.67,0.00012876,2]
[351283996,1738505558776,-2052.81,0.00012876,2]
[351283997,1738505558786,-1297.27,0.00012876,2]
[351283998,1738505558797,-2655.71,0.00012876,2]
[351283999,1738505558807,-1885.94,0.00012876,2]
[351284000,1738505558818,-1553.08,0.00012876,2]
[351284001,1738505558828,-10441.41,0.00012876,2]
[351284002,1738505558838,-1012.3,0.00012876,2]
[351284003,1738505558848,-500.0,0.00012876,2]
[351284004,1738505558858,-4514.04,0.00012876,2]
[351284005,1738505558868,-3003.61,0.00012876,2]
[351284006,1738505558878,-2902.94,0.00012876,2]
[351284007,1738505558888,-4716.6,0.00012876,2]
[351284008,1738505558898,-1964.45,0.00012876,2]
[351284009,1738505558908,-1593.35,0.00012876,2]
[351284010,1738505558918,-1637.22,0.00012876,2]
[351284011,1738505558928,-3416.51,0.00012876,2]
[351284012,1738505558938,-882.55,0.00012876,2]
[351284013,1738505558948,-500.0,0.00012876,2]
[351284014,1738505558957,-4127.67,0.00012876,2]
[351284015,1738505558967,-9172.95,0.00012876,2]
[351284016,1738505558978,-716.69,0.00012876,2]
[351284017,1738505558989,-3935.05,0.00012876,2]
[351284018,1738505559000,-994.51,0.00012876,2]
[351284019,1738505559009,-500.0,0.00012876,2]
[351284020,1738505559020,-500.0,0.00012876,2]
[351284021,1738505559030,-2231.33,0.00012876,2]
[351284022,1738505559040,-646.36,0.00012876,2]
[351284023,1738505559050,-7703.46,0.00012876,2]
[351284024,1738505559060,-612.75,0.00012876,2]
[351284025,1738505559071,-6130.86,0.00012876,2]
[351284026,1738505559081,-1008.29,0.00012876,2]
[351284027,1738505559092,-4888.75,0.00012876,2]
[351284028,1738505559101,-4468.98,0.00012876,2]
[351284029,1738505559111,-874.52,0.00012876,2]
[351284030,1738505559121,-7017.85,0.00012876,2]
[351284031,1738505559131,-7067.83,0.00012876,2]
[351284032,1738505559141,-504.51,0.00012876,2]
[351284033,1738505559150,-1694.57,0.00012876,2]
[351284034,1738505559160,-809.09,0.00012876,2]
[351284035,1738505559170,-1463.68,0.00012876,2]
[351284036,1738505559179,-180.06196295,0.00012876,2]
[351284037,1738505559189,-500.0,0.00012876,2]
[351284038,1738505559199,-957.1,0.00012876,2]
[351284039,1738505559208,-5901.35,0.00012876,2]
[351284040,1738505559218,-25450.62,0.00012876,2]
[351284041,1738505559228,-3194.77,0.00012876,2]
[351284042,1738505559238,-972.11,0.00012876,2]
[351284043,1738505559247,-500.0,0.00012876,2]
[351284044,1738505559257,-978.28,0.00012876,2]
[351284045,1738505559267,-1927.34,0.00012876,2]
[351284046,1738505559276,-1313.38,0.00012876,2]
[351284047,1738505559286,-1822.98,0.00012876,2]
[351284048,1738505559295,-2811.74,0.00012876,2]
[351284049,1738505559305,-2290.65,0.00012876,2]
[351284050,1738505559315,-4241.49,0.00012876,2]
[351284051,1738505559324,-2753.15,0.00012876,2]
[351284052,1738505559333,-778.33,0.00012876,2]
[351284053,1738505559343,-3179.79,0.00012876,2]
[351284054,1738505559352,-11875.49,0.00012876,2]
[351284055,1738505559363,-590.79,0.00012876,2]
[351284056,1738505559372,-2422.99,0.00012876,2]
[351284057,1738505559382,-1805.01,0.00012876,2]
[351284058,1738505559391,-1720.61,0.00012876,2]
[351284059,1738505559401,-8941.69,0.00012876,2]
[351284060,1738505559411,-890.83,0.00012876,2]
[351284061,1738505559420,-500.0,0.00012876,2]
[351284062,1738505559430,-924.98,0.00012876,2]
[351284063,1738505559440,-500.0,0.00012876,2]
[351284064,1738505559450,-2796.09,0.00012876,2]
[351284065,1738505559460,-753.96,0.00012876,2]
[351284066,1738505559471,-1515.55,0.00012876,2]
[351284067,1738505559481,-500.0,0.00012876,2]
[351284068,1738505559491,-8022.15,0.00012876,2]
[351284069,1738505559504,-1171.94,0.00012876,2]
[351284070,1738505559513,-500.0,0.00012876,2]
[351284071,1738505559524,-741.26,0.00012876,2]
[351284072,1738505559533,-1314.16,0.00012876,2]
[351284073,1738505559544,-500.0,0.00012876,2]
[351284074,1738505559556,-2827.17,0.00012876,2]
[351284075,1738505559566,-596.08,0.00012876,2]
[351284076,1738505559576,-2587.99,0.00012876,2]
[351284077,1738505559587,-500.0,0.00012876,2]
[351284078,1738505559596,-770.44,0.00012876,2]
[351284079,1738505559607,-3707.36,0.00012876,2]
[351284080,1738505559617,-651.22,0.00012876,2]
[351284081,1738505559627,-500.0,0.00012876,2]
[351284082,1738505559638,-3910.0,0.00012885,2]
[351284083,1738505559648,-1006.0,0.00012885,2]
[351284084,1738505559658,-150.0,0.00012885,2]
[351284085,1738505559668,-1108.0,0.00012887,2]
[351284086,1738505559679,-176.65,0.00012908,2]
[351284087,1738505559690,-202.0,0.0001297,2]
[351284088,1738505559700,-639.94,0.00012991,2]
[351284089,1738505559709,-10019.88,0.00013,2]
[351284090,1738505559719,-550.0,0.00013,2]
[351284091,1738505559729,-517.22381218,0.00013013,2]
[351284092,1738505559738,-559.46,0.00013013,2]
[351284093,1738505559748,-803.7,0.00013013,2]
[351284094,1738505559757,-500.0,0.00013013,2]
[351284095,1738505559768,-500.0,0.00013013,2]
[351284096,1738505559777,-801.06,0.00013013,2]
[351284097,1738505559787,-500.0,0.00013013,2]
[351284098,1738505559796,-773.23,0.00013013,2]
[351284099,1738505559805,-500.0,0.00013013,2]
[351284100,1738505559815,-759.9,0.00013013,2]
[351284101,1738505559824,-1260.15,0.00013013,2]
[351284102,1738505559834,-589.03,0.00013013,2]
[351284103,1738505559844,-191.27405906,0.00013013,2]
[351284104,1738505559854,-500.0,0.00013013,2]
[351284105,1738505559863,-500.0,0.00013013,2]
[351284106,1738505559873,-1063.41,0.00013013,2]
[351284107,1738505559882,-673.02,0.00013013,2]
[351284108,1738505559892,-500.0,0.00013013,2]
[351284109,1738505559901,-821.68,0.00013013,2]
[351284110,1738505559911,-549.88,0.00013013,2]
[351284111,1738505559920,-500.0,0.00013013,2]
[351284112,1738505559930,-703.15,0.00013013,2]
[351284113,1738505559939,-500.0,0.00013013,2]
[351284114,1738505559949,-828.9,0.00013013,2]
[351284115,1738505559958,-627.47,0.00013013,2]
[351284116,1738505559968,-731.11,0.00013013,2]
[351284117,1738505559978,-500.0,0.00013013,2]
[351284118,1738505559988,-500.0,0.00013013,2]
[351284119,1738505560000,-592.69,0.00013013,2]
[351284120,1738505560011,-625.97,0.00013013,2]
[351284121,1738505560123,-500.0,0.00013013,2]
[351284122,1738505560134,-500.0,0.00013013,2]
[351284123,1738505560145,-661.86,0.00013013,2]
[351284124,1738505560155,-552.57,0.00013013,2]
[351284125,1738505560166,-3015.63,0.00013013,2]
[351284126,1738505560176,-635.12,0.00013013,2]
[351284127,1738505560187,-1112.86,0.00013013,2]
[351284128,1738505560198,-511.08,0.00013013,2]
[351284129,1738505560207,-910.85,0.00013013,2]
[351284130,1738505560219,-500.0,0.00013013,2]
[351284131,1738505560229,-738.14,0.00013013,2]
[351284132,1738505560240,-1482.76,0.00013013,2]
[351284133,1738505560250,-500.0,0.00013013,2]
[351284134,1738505560261,-500.0,0.00013013,2]
[351284135,1738505560273,-545.77,0.00013013,2]
[351284136,1738505560283,-500.0,0.00013013,2]
[351284137,1738505560294,-735.2,0.00013013,2]
[351284138,1738505560305,-717.38,0.00013013,2]
[351284139,1738505560315,-500.0,0.00013013,2]
[351284140,1738505560326,-2333.39,0.00013013,2]
[351284141,1738505560337,-618.28,0.00013013,2]
[351284142,1738505560347,-2305.89,0.00013013,2]
[351284143,1738505560358,-703.3,0.00013013,2]
[351284144,1738505560369,-2217.46,0.00013013,2]
[351284145,1738505560380,-500.0,0.00013013,2]
[351284146,1738505560390,-573.42,0.00013013,2]
[351284147,1738505560400,-2053.36,0.00013013,2]
[351284148,1738505560409,-1106.04,0.00013013,2]
[351284149,1738505560421,-2139.13,0.00013013,2]
[351284150,1738505560431,-1316.15,0.00013013,2]
[351284151,1738505560442,-500.0,0.00013013,2]
[351284152,1738505560452,-500.0,0.00013013,2]
[351284153,1738505560462,-548.83,0.00013013,2]
[351284154,1738505560473,-553.21,0.00013013,2]
[351284155,1738505560483,-525.3,0.00013013,2]
[351284156,1738505560493,-500.0,0.00013013,2]
[351284157,1738505560505,-2325.54,0.00013013,2]
[351284158,1738505560516,-1109.74,0.00013013,2]
[351284159,1738505560526,-500.44,0.00013013,2]
[351284160,1738505560537,-681.73,0.00013013,2]
[351284161,1738505560551,-677.93,0.00013013,2]
[351284162,1738505560563,-513.34,0.00013013,2]
[351284163,1738505560575,-1154.2,0.00013013,2]
[351284164,1738505560587,-2022.69,0.00013013,2]
[351284165,1738505560599,-685.35,0.00013013,2]
[351284166,1738505560610,-500.0,0.00013013,2]
[351284167,1738505560621,-500.0,0.00013013,2]
[351284168,1738505560633,-500.0,0.00013013,2]
[351284169,1738505560644,-550.64,0.00013013,2]
[351284170,1738505560656,-1342.11,0.00013013,2]
[351284171,1738505560666,-509.25071384,0.00013013,2]
[351284172,1738505560677,-500.0,0.00013013,2]
[351284173,1738505561023,-2093.39,0.00013013,2]
[351284174,1738505561041,-880.18,0.00013013,2]
[351284175,1738505561051,-1643.92,0.00013013,2]
[351284176,1738505561060,-500.0,0.00013013,2]
[351284177,1738505561071,-793.33,0.00013013,2]
[351284178,1738505561080,-500.0,0.00013013,2]
[351284179,1738505561090,-1232.16,0.00013013,2]
[351284180,1738505561100,-588.54,0.00013013,2]
[351284181,1738505561111,-500.0,0.00013013,2]
[351284182,1738505561122,-534.34,0.00013013,2]
[351284183,1738505561132,-538.87,0.00013013,2]
[351284184,1738505561143,-793.28,0.00013013,2]
[351284185,1738505561153,-500.0,0.00013013,2]
[351284186,1738505561163,-1592.88,0.00013013,2]
[351284187,1738505561173,-616.53,0.00013013,2]
[351284188,1738505561183,-523.89425038,0.00013013,2]
[351284189,1738505561193,-500.0,0.00013013,2]
[351284190,1738505561203,-1854.87,0.00013013,2]
[351284191,1738505561212,-1690.33,0.00013013,2]
[351284192,1738505561222,-500.0,0.00013013,2]
[351284193,1738505561231,-500.0,0.00013013,2]
[351284194,1738505561240,-534.43,0.00013013,2]
[351284195,1738505561250,-500.0,0.00013013,2]
[351284196,1738505561260,-508.93,0.00013013,2]
[351284197,1738505561269,-637.72,0.00013013,2]
[351284198,1738505561278,-1150.84,0.00013013,2]
[351284199,1738505561287,-508.66,0.00013013,2]
[351284200,1738505561297,-500.0,0.00013013,2]
[351284201,1738505561306,-586.07,0.00013013,2]
[351284202,1738505561316,-800.25,0.00013013,2]
[351284203,1738505561325,-731.54,0.00013013,2]
[351284204,1738505561335,-1305.07,0.00013013,2]
[351284205,1738505561344,-1841.9,0.00013013,2]
[351284206,1738505561354,-734.22,0.00013013,2]
[351284207,1738505561363,-500.0,0.00013013,2]
[351284208,1738505561373,-1731.58,0.00013013,2]
[351284209,1738505561383,-573.1,0.00013013,2]
[351284210,1738505561393,-500.0,0.00013013,2]
[351284211,1738505561403,-500.0,0.00013013,2]
[351284212,1738505561413,-1366.78,0.00013013,2]
[351284213,1738505561423,-500.0,0.00013013,2]
[351284214,1738505561434,-1447.06,0.00013013,2]
[351284215,1738505561444,-955.56,0.00013013,2]
[351284216,1738505561455,-521.42,0.00013013,2]
[351284217,1738505561465,-854.39,0.00013013,2]
[351284218,1738505561476,-904.27,0.00013013,2]
[351284219,1738505561486,-2762.56,0.00013013,2]
[351284220,1738505561497,-500.0,0.00013013,2]
[351284221,1738505561508,-666.98,0.00013013,2]
[351284222,1738505561519,-783.0,0.00013013,2]
[351284223,1738505561529,-500.0,0.00013013,2]
[351284224,1738505561539,-2104.01,0.00013013,2]
[351284225,1738505561555,-2287.85,0.00013013,2]
[351284226,1738505561566,-944.74,0.00013013,2]
[351284227,1738505561577,-738.27,0.00013013,2]
[351284228,1738505561588,-505.82,0.00013013,2]
[351284229,1738505561599,-1297.85,0.00013013,2]
[351284230,1738505561610,-1519.92,0.00013013,2]
[351284231,1738505561621,-500.0,0.00013013,2]
[351284232,1738505561632,-500.0,0.00013013,2]
[351284233,1738505561643,-500.0,0.00013013,2]
[351284234,1738505561654,-500.0,0.00013013,2]
[351284235,1738505561664,-643.77,0.00013013,2]
[351284236,1738505561674,-784.02,0.00013013,2]
[351284237,1738505561684,-529.45,0.00013013,2]
[351284238,1738505561694,-500.0,0.00013013,2]
[351284239,1738505561704,-1418.55,0.00013013,2]
[351284240,1738505561714,-517.07,0.00013013,2]
[351284241,1738505561725,-2783.69,0.00013013,2]
[351284242,1738505561735,-1420.23,0.00013013,2]
[351284243,1738505561745,-2181.51,0.00013013,2]
[351284244,1738505561756,-1225.35,0.00013013,2]
[351284245,1738505561767,-500.0,0.00013013,2]
[351284246,1738505561776,-500.0,0.00013013,2]
[351284247,1738505561787,-500.0,0.00013013,2]
[351284248,1738505561798,-942.19,0.00013013,2]
[351284249,1738505561808,-507.86,0.00013013,2]
[351284250,1738505561818,-844.52,0.00013013,2]
[351284251,1738505561829,-1267.86,0.00013013,2]
[351284252,1738505561839,-1642.95,0.00013013,2]
[351284253,1738505561849,-632.5,0.00013013,2]
[351284254,1738505561859,-500.0,0.00013013,2]
[351284255,1738505561869,-717.96,0.00013013,2]
[351284256,1738505561880,-862.89,0.00013013,2]
[351284257,1738505561890,-552.35865131,0.00013013,2]
[351284258,1738505561901,-978.15,0.00013013,2]
[351284259,1738505561911,-1851.1,0.00013013,2]
[351284260,1738505561922,-591.76,0.00013013,2]
[351284261,1738505561933,-722.67,0.00013013,2]
[351284262,1738505561943,-500.0,0.00013013,2]
[351284263,1738505561954,-500.0,0.00013013,2]
[351284264,1738505561965,-520.38,0.00013013,2]
[351284265,1738505561975,-500.0,0.00013013,2]
[351284266,1738505561986,-500.0,0.00013013,2]
[351284267,1738505561997,-1708.12,0.00013013,2]
[351284268,1738505562008,-523.57,0.00013013,2]
[351284269,1738505562018,-760.88,0.00013013,2]
[351284270,1738505562029,-500.0,0.00013013,2]
[351284271,1738505562040,-811.43,0.00013013,2]
[351284272,1738505562050,-1175.0,0.00013013,2]
[351284273,1738505562061,-1373.61,0.00013013,2]
[351284274,1738505562072,-1105.09,0.00013013,2]
[351284275,1738505562082,-747.24,0.00013013,2]
[351284276,1738505562093,-1419.66,0.00013013,2]
[351284277,1738505562104,-899.67,0.00013013,2]
[351284278,1738505562114,-500.0,0.00013013,2]
[351284279,1738505562125,-814.85,0.00013013,2]
[351284280,1738505562135,-967.34,0.00013013,2]
[351284281,1738505562146,-984.06,0.00013013,2]
[351284282,1738505562155,-709.72,0.00013013,2]
[351284283,1738505562166,-580.72,0.00013013,2]
[351284284,1738505562177,-500.0,0.00013013,2]
[351284285,1738505562187,-509.47,0.00013013,2]
[351284286,1738505562199,-1529.4,0.00013013,2]
[351284287,1738505562209,-1025.92,0.00013013,2]
[351284288,1738505562219,-500.0,0.00013013,2]
[351284289,1738505562230,-736.8,0.00013013,2]
[351284290,1738505562241,-500.0,0.00013013,2]
[351284291,1738505562251,-500.0,0.00013013,2]
[351284292,1738505562261,-500.0,0.00013013,2]
[351284293,1738505562271,-621.28844008,0.00013013,2]
[351284294,1738505562281,-794.58,0.00013013,2]
[351284295,1738505562291,-515.19,0.00013013,2]
[351284296,1738505562300,-500.0,0.00013013,2]
[351284297,1738505562310,-551.09,0.00013013,2]
[351284298,1738505562319,-1457.11,0.00013013,2]
[351284299,1738505562330,-848.94,0.00013013,2]
[351284300,1738505562340,-512.04,0.00013013,2]
[351284301,1738505562350,-1457.16,0.00013013,2]
[351284302,1738505562359,-562.76,0.00013013,2]
[351284303,1738505562369,-1032.24,0.00013013,2]
[351284304,1738505562378,-1061.96,0.00013013,2]
[351284305,1738505562388,-500.0,0.00013013,2]
[351284306,1738505562398,-1015.65,0.00013013,2]
[351284307,1738505562407,-679.22,0.00013013,2]
[351284308,1738505562417,-1177.9,0.00013013,2]
[351284309,1738505562427,-510.71,0.00013013,2]
[351284310,1738505562437,-500.0,0.00013013,2]
[351284311,1738505562447,-584.42,0.00013013,2]
[351284312,1738505562457,-1657.79,0.00013013,2]
[351284313,1738505562468,-1057.32,0.00013013,2]
[351284314,1738505562479,-510.86830478,0.00013013,2]
[351284315,1738505562489,-500.0,0.00013013,2]
[351284316,1738505562501,-737.32,0.00013013,2]
[351284317,1738505562510,-865.79,0.00013013,2]
[351284318,1738505562521,-1316.4,0.00013013,2]
[351284319,1738505562531,-671.26,0.00013013,2]
[351284320,1738505562541,-751.62,0.00013013,2]
[351284321,1738505562554,-1011.53,0.00013013,2]
[351284322,1738505562567,-750.62,0.00013013,2]
[351284323,1738505562579,-500.0,0.00013013,2]
[351284324,1738505562589,-1248.28,0.00013013,2]
[351284325,1738505562598,-519.27,0.00013013,2]
[351284326,1738505562607,-500.0,0.00013013,2]
[351284327,1738505562616,-500.0,0.00013013,2]
[351284328,1738505562626,-775.41,0.00013013,2]
[351284329,1738505562638,-650.78,0.00013013,2]
[351284330,1738505562648,-500.0,0.00013013,2]
[351284331,1738505562660,-787.2,0.00013013,2]
[351284332,1738505562670,-500.0,0.00013013,2]
[351284333,1738505562681,-1398.59,0.00013013,2]
[351284334,1738505562692,-2098.34,0.00013013,2]
[351284335,1738505562703,-1717.3,0.00013013,2]
[351284336,1738505562714,-535.92,0.00013013,2]
[351284337,1738505562725,-520.83,0.00013013,2]
[351284338,1738505562735,-500.0,0.00013013,2]
[351284339,1738505562746,-1388.03,0.00013013,2]
[351284340,1738505562759,-696.21,0.00013013,2]
[351284341,1738505562770,-500.0,0.00013013,2]
[351284342,1738505562782,-638.42,0.00013013,2]
[351284343,1738505562794,-1523.64,0.00013013,2]
[351284344,1738505562805,-1438.93,0.00013013,2]
[351284345,1738505562815,-500.0,0.00013013,2]
[351284346,1738505562825,-500.0,0.00013013,2]
[351284347,1738505562835,-1164.79,0.00013013,2]
[351284348,1738505562845,-500.0,0.00013013,2]
[351284349,1738505562855,-2008.34,0.00013013,2]
[351284350,1738505562866,-867.5,0.00013013,2]
[351284351,1738505562876,-500.0,0.00013013,2]
[351284352,1738505562887,-930.83,0.00013013,2]
[351284353,1738505562898,-1142.86,0.00013013,2]
[351284354,1738505562909,-1063.97,0.00013013,2]
[351284355,1738505562920,-5963.38,0.00013013,2]
[351284356,1738505562929,-528.98,0.00013013,2]
[351284357,1738505562941,-632.65,0.00013013,2]
[351284358,1738505562952,-939.46,0.00013013,2]
[351284359,1738505562963,-500.0,0.00013013,2]
[351284360,1738505562975,-2575.73,0.00013013,2]
[351284361,1738505562985,-1411.82,0.00013013,2]
[351284362,1738505562997,-500.0,0.00013013,2]
[351284363,1738505563009,-500.0,0.00013013,2]
[351284364,1738505563019,-4332.07,0.00013013,2]
[351284365,1738505563029,-500.0,0.00013013,2]
[351284366,1738505563039,-623.14,0.00013013,2]
[351284367,1738505563048,-808.47,0.00013013,2]
[351284368,1738505563058,-500.0,0.00013013,2]
[351284369,1738505563068,-500.0,0.00013013,2]
[351284370,1738505563079,-1167.23,0.00013013,2]
[351284371,1738505563088,-1073.14,0.00013013,2]
[351284372,1738505563099,-1266.06,0.00013013,2]
[351284373,1738505563110,-1643.83,0.00013013,2]
[351284374,1738505563120,-2134.84,0.00013013,2]
[351284375,1738505563130,-1098.43,0.00013013,2]
[351284376,1738505563139,-7531.63,0.00013013,2]
[351284377,1738505563149,-636.47,0.00013013,2]
[351284378,1738505563159,-2806.74,0.00013013,2]
[351284379,1738505563170,-500.0,0.00013013,2]
[351284380,1738505563180,-4457.82,0.00013013,2]
[351284381,1738505563190,-500.0,0.00013013,2]
[351284382,1738505563200,-500.0,0.00013013,2]
[351284383,1738505563210,-1431.15,0.00013013,2]
[351284384,1738505563220,-1068.36,0.00013013,2]
[351284385,1738505563230,-3317.75,0.00013013,2]
[351284386,1738505563240,-3236.23,0.00013013,2]
[351284387,1738505563250,-500.0,0.00013013,2]
[351284388,1738505563260,-500.0,0.00013013,2]
[351284389,1738505563270,-500.0,0.00013013,2]
[351284390,1738505563281,-998.58,0.00013013,2]
[351284391,1738505563291,-649.19,0.00013013,2]
[351284392,1738505563301,-3603.07,0.00013013,2]
[351284393,1738505563311,-647.76,0.00013013,2]
[351284394,1738505563321,-518.71,0.00013013,2]
[351284395,1738505563331,-2773.67,0.00013013,2]
[351284396,1738505563341,-3478.77,0.00013013,2]
[351284397,1738505563351,-1377.07,0.00013013,2]
[351284398,1738505563361,-500.0,0.00013013,2]
[351284399,1738505563371,-1559.79,0.00013013,2]
[351284400,1738505563380,-993.51,0.00013013,2]
[351284401,1738505563390,-1353.14,0.00013013,2]
[351284402,1738505563400,-532.1,0.00013013,2]
[351284403,1738505563409,-1889.01,0.00013013,2]
[351284404,1738505563419,-5584.57,0.00013013,2]
[351284405,1738505563428,-628.58,0.00013013,2]
[351284406,1738505563438,-500.0,0.00013013,2]
[351284407,1738505563448,-1416.56,0.00013013,2]
[351284408,1738505563458,-966.92,0.00013013,2]
[351284409,1738505563468,-1706.09,0.00013013,2]
[351284410,1738505563478,-820.07,0.00013013,2]
[351284411,1738505563488,-865.01,0.00013013,2]
[351284412,1738505563608,-555.56,0.00013013,2]
[351284413,1738505563619,-500.0,0.00013013,2]
[351284414,1738505563629,-6599.2,0.00013013,2]
[351284415,1738505563639,-4362.97,0.00013013,2]
[351284416,1738505563649,-3023.49,0.00013013,2]
[351284417,1738505563659,-1475.65,0.00013013,2]
[351284418,1738505563669,-786.41,0.00013013,2]
[351284419,1738505563678,-1337.09,0.00013013,2]
[351284420,1738505563688,-1205.96,0.00013013,2]
[351284421,1738505563698,-1903.11,0.00013013,2]
[351284422,1738505563707,-2817.82,0.00013013,2]
[351284423,1738505563717,-2360.45,0.00013013,2]
[351284424,1738505563727,-512.92095539,0.00013013,2]
[351284425,1738505563736,-583.26,0.00013013,2]
[351284426,1738505563747,-934.52,0.00013013,2]
[351284427,1738505563757,-1388.22,0.00013013,2]
[351284428,1738505563767,-2432.51,0.00013013,2]
[351284429,1738505563777,-2243.95,0.00013013,2]
[351284430,1738505563787,-609.67,0.00013013,2]
[351284431,1738505563797,-1262.46,0.00013013,2]
[351284432,1738505563807,-2572.68,0.00013013,2]
[351284433,1738505563816,-1950.74,0.00013013,2]
[351284434,1738505563826,-1181.19,0.00013013,2]
[351284435,1738505563835,-871.86,0.00013013,2]
[351284436,1738505563845,-1126.88,0.00013013,2]
[351284437,1738505563855,-541.6,0.00013013,2]
[351284438,1738505563865,-2805.0,0.00013013,2]
[351284439,1738505563874,-3490.69,0.00013013,2]
[351284440,1738505563883,-2478.61,0.00013013,2]
[351284441,1738505563893,-1886.99,0.00013013,2]
[351284442,1738505563903,-693.62,0.00013013,2]
[351284443,1738505563913,-1166.42,0.00013013,2]
[351284444,1738505563922,-4718.72,0.00013013,2]
[351284445,1738505563932,-646.83,0.00013013,2]
[351284446,1738505563942,-428.31519376,0.00013013,2]
[351284447,1738505563951,-1219.56,0.00013013,2]
[351284448,1738505563961,-1713.43,0.00013013,2]
[351284449,1738505563969,-500.0,0.00013013,2]
[351284450,1738505563978,-764.96,0.00013013,2]
[351284451,1738505563988,-742.31,0.00013013,2]
[351284452,1738505563997,-585.08,0.00013013,2]
[351284453,1738505564007,-5247.94,0.00013013,2]
[351284454,1738505564016,-1545.21,0.00013013,2]
[351284455,1738505564025,-5157.65,0.00013013,2]
[351284456,1738505564034,-2240.61,0.00013013,2]
[351284457,1738505564043,-1481.58,0.00013013,2]
[351284458,1738505564052,-535.67,0.00013013,2]
[351284459,1738505564061,-1485.26,0.00013013,2]
[351284460,1738505564071,-1399.19,0.00013013,2]
[351284461,1738505564080,-3226.98,0.00013013,2]
[351284462,1738505564089,-1311.36,0.00013013,2]
[351284463,1738505564098,-500.0,0.00013013,2]
[351284464,1738505564108,-5680.36,0.00013013,2]
[351284465,1738505564116,-2300.21,0.00013013,2]
[351284466,1738505564124,-500.0,0.00013013,2]
[351284467,1738505564134,-2521.42,0.00013013,2]
[351284468,1738505564143,-2782.57,0.00013013,2]
[351284469,1738505564151,-1766.1,0.00013013,2]
[351284470,1738505564160,-1697.0,0.00013013,2]
[351284471,1738505564169,-1939.71,0.00013013,2]
[351284472,1738505564178,-787.48,0.00013013,2]